[Event "Titled Tuesday Blitz December 06 Early 2022"]
[White "Ciuffoletti, Paolo"]
[Black "Zaragatski, Ilja"]
[WhiteFideId "807630"]
[BlackFideId "4655192"]
[WhiteElo "2143"]
[BlackElo "2460"]
[Result "1-0"]
[Round "02"]
[TimeControl "180+1"]
[Date "2022.12.07"]
[WhiteClock "0:01:26"]
[BlackClock "0:01:40"]

1. e4 {[%clk 0:03:00]}  d5 {[%clk 0:02:57]} 2. exd5 {[%clk 0:03:00]}  Qxd5 {[%clk 0:02:58]} 3. Nc3 {[%clk 0:02:59]}  Qd8 {[%clk 0:02:58]} 4. d4 {[%clk 0:02:59]}  Nf6 {[%clk 0:02:56]} 5. Nf3 {[%clk 0:02:59]}  Bf5 {[%clk 0:02:55]} 6. Bc4 {[%clk 0:02:53]}  e6 {[%clk 0:02:55]} 7. Nh4 {[%clk 0:02:44]}  Bg4 {[%clk 0:02:53]} 8. f3 {[%clk 0:02:39]}  Bh5 {[%clk 0:02:53]} 9. g4 {[%clk 0:02:28]}  Bg6 {[%clk 0:02:52]} 10. Ng2 {[%clk 0:02:23]}  c6 {[%clk 0:02:26]} 11. h4 {[%clk 0:02:12]}  h5 {[%clk 0:02:12]} 12. g5 {[%clk 0:02:10]}  Nd5 {[%clk 0:02:11]} 13. Nf4 {[%clk 0:01:49]}  Nxf4 {[%clk 0:02:02]} 14. Bxf4 {[%clk 0:01:48]}  Bd6 {[%clk 0:02:03]} 15. Qd2 {[%clk 0:01:44]}  Bxf4 {[%clk 0:01:53]} 16. Qxf4 {[%clk 0:01:43]}  Nd7 {[%clk 0:01:54]} 17. O-O-O {[%clk 0:01:39]}  Nb6 {[%clk 0:01:54]} 18. Bd3 {[%clk 0:01:37]}  Bxd3 {[%clk 0:01:53]} 19. Rxd3 {[%clk 0:01:36]}  g6 {[%clk 0:01:49]} 20. Ne4 {[%clk 0:01:29]}  Nd5 {[%clk 0:01:48]} 21. Qe5 {[%clk 0:01:28]}  b5 {[%clk 0:01:40]} 22. Qxh8+ {[%clk 0:01:26]} 1-0


[Site "https://www.chess.com"]

[Event "Titled Tuesday Blitz December 06 Early 2022"]
[White "Dardha, Daniel"]
[Black "Danielyan, Vahe"]
[WhiteFideId "240990"]
[BlackFideId "13304828"]
[WhiteElo "2528"]
[BlackElo "2423"]
[Result "1-0"]
[Round "02"]
[TimeControl "180+1"]
[Date "2022.12.06"]
[WhiteClock "0:00:15"]
[BlackClock "0:00:07"]

1. d4 {[%clk 0:03:00]}  d5 {[%clk 0:02:59]} 2. c4 {[%clk 0:03:00]}  dxc4 {[%clk 0:03:00]} 3. e4 {[%clk 0:03:00]}  e5 {[%clk 0:03:00]} 4. Nf3 {[%clk 0:02:59]}  exd4 {[%clk 0:03:00]} 5. Bxc4 {[%clk 0:03:00]}  Nc6 {[%clk 0:03:01]} 6. O-O {[%clk 0:02:58]}  Be6 {[%clk 0:03:01]} 7. Nbd2 {[%clk 0:02:55]}  Nf6 {[%clk 0:02:59]} 8. a3 {[%clk 0:02:46]}  Be7 {[%clk 0:02:55]} 9. b4 {[%clk 0:02:36]}  O-O {[%clk 0:02:52]} 10. Qb3 {[%clk 0:02:36]}  Bxc4 {[%clk 0:02:51]} 11. Qxc4 {[%clk 0:02:37]}  Bd6 {[%clk 0:02:47]} 12. Bb2 {[%clk 0:02:32]}  Re8 {[%clk 0:02:45]} 13. Rfe1 {[%clk 0:02:32]}  Ng4 {[%clk 0:02:37]} 14. b5 {[%clk 0:02:20]}  Nge5 {[%clk 0:02:26]} 15. Nxe5 {[%clk 0:02:19]}  Nxe5 {[%clk 0:02:27]} 16. Qxd4 {[%clk 0:02:19]}  Qh4 {[%clk 0:02:16]} 17. h3 {[%clk 0:01:41]}  Rad8 {[%clk 0:02:15]} 18. Qc3 {[%clk 0:01:38]}  Qg5 {[%clk 0:02:10]} 19. Rad1 {[%clk 0:01:20]}  b6 {[%clk 0:01:52]} 20. a4 {[%clk 0:01:12]}  Qg6 {[%clk 0:01:38]} 21. Nc4 {[%clk 0:00:54]}  Nxc4 {[%clk 0:01:32]} 22. Qxc4 {[%clk 0:00:55]}  h6 {[%clk 0:01:29]} 23. Rd3 {[%clk 0:00:44]}  Bc5 {[%clk 0:01:19]} 24. Rd5 {[%clk 0:00:31]}  Rxd5 {[%clk 0:01:08]} 25. Qxd5 {[%clk 0:00:32]}  Qe6 {[%clk 0:01:08]} 26. Qxe6 {[%clk 0:00:31]}  Rxe6 {[%clk 0:01:09]} 27. Kf1 {[%clk 0:00:28]}  Rd6 {[%clk 0:01:04]} 28. Ke2 {[%clk 0:00:28]}  f6 {[%clk 0:00:56]} 29. Bc3 {[%clk 0:00:20]}  Kf7 {[%clk 0:00:54]} 30. Ra1 {[%clk 0:00:19]}  c6 {[%clk 0:00:47]} 31. Ra2 {[%clk 0:00:17]}  h5 {[%clk 0:00:42]} 32. Bd2 {[%clk 0:00:17]}  Ke6 {[%clk 0:00:36]} 33. Bf4 {[%clk 0:00:17]}  Rd4 {[%clk 0:00:33]} 34. bxc6 {[%clk 0:00:16]}  Rxe4+ {[%clk 0:00:14]} 35. Kf3 {[%clk 0:00:16]}  Rc4 {[%clk 0:00:13]} 36. Re2+ {[%clk 0:00:14]}  Kf5 {[%clk 0:00:07]} 37. g4+ {[%clk 0:00:14]}  hxg4+ {[%clk 0:00:08]} 38. hxg4+ {[%clk 0:00:15]}  Kg6 {[%clk 0:00:08]} 39. c7 {[%clk 0:00:16]}  Bb4 {[%clk 0:00:08]} 40. Re8 {[%clk 0:00:15]}  Rc3+ {[%clk 0:00:07]} 41. Kg2 {[%clk 0:00:15]} 1-0


[Site "https://www.chess.com"]

[Event "Titled Tuesday Blitz December 06 Early 2022"]
[White "Darini, Pouria"]
[Black "Mika, Tomasz"]
[WhiteFideId "12502200"]
[BlackFideId "1132970"]
[WhiteElo "2482"]
[BlackElo "2179"]
[Result "1-0"]
[Round "02"]
[TimeControl "180+1"]
[Date "2022.12.07"]
[WhiteClock "0:00:14"]
[BlackClock "0:00:01"]

1. d4 {[%clk 0:02:59]}  d5 {[%clk 0:02:59]} 2. Nf3 {[%clk 0:02:59]}  Nf6 {[%clk 0:02:59]} 3. Bf4 {[%clk 0:02:59]}  c5 {[%clk 0:02:59]} 4. e3 {[%clk 0:02:59]}  Qb6 {[%clk 0:02:57]} 5. Nc3 {[%clk 0:02:57]}  cxd4 {[%clk 0:02:47]} 6. Nb5 {[%clk 0:02:49]}  Na6 {[%clk 0:02:42]} 7. exd4 {[%clk 0:02:42]}  Bd7 {[%clk 0:02:37]} 8. a4 {[%clk 0:02:42]}  e6 {[%clk 0:02:30]} 9. h3 {[%clk 0:02:20]}  Be7 {[%clk 0:02:27]} 10. Bd3 {[%clk 0:02:20]}  O-O {[%clk 0:02:27]} 11. O-O {[%clk 0:02:21]}  Nb4 {[%clk 0:02:21]} 12. Be2 {[%clk 0:02:21]}  a6 {[%clk 0:02:17]} 13. Bc7 {[%clk 0:02:18]}  Qc6 {[%clk 0:02:11]} 14. Ne5 {[%clk 0:02:00]}  Qxc2 {[%clk 0:02:10]} 15. Nc3 {[%clk 0:01:39]}  Qxb2 {[%clk 0:01:50]} 16. Qe1 {[%clk 0:00:41]}  Rfc8 {[%clk 0:00:37]} 17. Rb1 {[%clk 0:00:41]}  Qa3 {[%clk 0:00:32]} 18. Ra1 {[%clk 0:00:41]}  Qb3 {[%clk 0:00:32]} 19. Rb1 {[%clk 0:00:42]}  Qc2 {[%clk 0:00:31]} 20. Rc1 {[%clk 0:00:40]}  Qf5 {[%clk 0:00:31]} 21. g4 {[%clk 0:00:32]}  Qg5 {[%clk 0:00:29]} 22. f4 {[%clk 0:00:32]}  Qh6 {[%clk 0:00:14]} 23. g5 {[%clk 0:00:32]}  Qxh3 {[%clk 0:00:13]} 24. Rf3 {[%clk 0:00:20]}  Qf5 {[%clk 0:00:08]} 25. gxf6 {[%clk 0:00:19]}  Bxf6 {[%clk 0:00:08]} 26. Bd6 {[%clk 0:00:18]}  Nc6 {[%clk 0:00:04]} 27. Nxd7 {[%clk 0:00:16]}  Nxd4 {[%clk 0:00:04]} 28. Nxf6+ {[%clk 0:00:16]}  gxf6 {[%clk 0:00:03]} 29. Rg3+ {[%clk 0:00:16]}  Kh8 {[%clk 0:00:04]} 30. Bd3 {[%clk 0:00:17]}  Qh5 {[%clk 0:00:02]} 31. Be7 {[%clk 0:00:18]}  Nf3+ {[%clk 0:00:02]} 32. Rxf3 {[%clk 0:00:18]}  Qxf3 {[%clk 0:00:03]} 33. Bxf6+ {[%clk 0:00:18]}  Kg8 {[%clk 0:00:03]} 34. Bxh7+ {[%clk 0:00:13]}  Kxh7 {[%clk 0:00:02]} 35. Qh4+ {[%clk 0:00:14]}  Kg6 {[%clk 0:00:01]} 36. Qg5+ {[%clk 0:00:14]} 1-0


[Site "https://www.chess.com"]

[Event "Titled Tuesday Blitz December 06 Early 2022"]
[White "De Arruda, Leandro Formes"]
[Black "Lehtosaari, Mauri"]
[WhiteFideId "22722009"]
[BlackFideId "501999"]
[WhiteElo "1880"]
[BlackElo "2504"]
[Result "1/2-1/2"]
[Round "02"]
[TimeControl "180+1"]
[Date "2022.12.07"]
[WhiteClock "0:00:31"]
[BlackClock "0:00:08"]

1. d4 {[%clk 0:03:00]}  d5 {[%clk 0:02:59]} 2. Nf3 {[%clk 0:03:00]}  Nf6 {[%clk 0:02:59]} 3. e3 {[%clk 0:03:01]}  Bg4 {[%clk 0:02:56]} 4. Be2 {[%clk 0:03:01]}  e6 {[%clk 0:02:56]} 5. Ne5 {[%clk 0:03:00]}  Bxe2 {[%clk 0:02:55]} 6. Qxe2 {[%clk 0:03:01]}  c6 {[%clk 0:02:55]} 7. O-O {[%clk 0:03:01]}  Nbd7 {[%clk 0:02:54]} 8. f4 {[%clk 0:03:01]}  Ne4 {[%clk 0:02:53]} 9. Nd2 {[%clk 0:03:00]}  Ndf6 {[%clk 0:02:53]} 10. c4 {[%clk 0:02:57]}  Bd6 {[%clk 0:02:52]} 11. cxd5 {[%clk 0:02:54]}  exd5 {[%clk 0:02:49]} 12. Nxe4 {[%clk 0:02:50]}  Nxe4 {[%clk 0:02:48]} 13. Qh5 {[%clk 0:02:40]}  Qe7 {[%clk 0:02:34]} 14. Qg4 {[%clk 0:02:37]}  f6 {[%clk 0:02:07]} 15. Qh5+ {[%clk 0:02:17]}  g6 {[%clk 0:01:49]} 16. Nxg6 {[%clk 0:02:12]}  Qf7 {[%clk 0:01:49]} 17. f5 {[%clk 0:02:10]}  Rg8 {[%clk 0:01:46]} 18. Nf4 {[%clk 0:02:03]}  Qxh5 {[%clk 0:01:38]} 19. Nxh5 {[%clk 0:02:04]}  Kf7 {[%clk 0:01:36]} 20. Nf4 {[%clk 0:02:01]}  Rg5 {[%clk 0:01:30]} 21. Ne6 {[%clk 0:01:58]}  Rh5 {[%clk 0:01:30]} 22. g3 {[%clk 0:01:50]}  Rg8 {[%clk 0:01:29]} 23. Rf3 {[%clk 0:01:34]}  Bxg3 {[%clk 0:01:02]} 24. hxg3 {[%clk 0:01:32]}  Nxg3 {[%clk 0:01:03]} 25. Nf4 {[%clk 0:01:24]}  Ne4+ {[%clk 0:00:32]} 26. Kf1 {[%clk 0:01:20]}  Rh1+ {[%clk 0:00:31]} 27. Ke2 {[%clk 0:01:20]}  Rgg1 {[%clk 0:00:31]} 28. Nd3 {[%clk 0:00:42]}  Rg2+ {[%clk 0:00:17]} 29. Nf2 {[%clk 0:00:43]}  Rhg1 {[%clk 0:00:15]} 30. b3 {[%clk 0:00:37]}  Nc3+ {[%clk 0:00:12]} 31. Kd3 {[%clk 0:00:36]}  Nd1 {[%clk 0:00:08]} 32. Ke2 {[%clk 0:00:34]}  Nc3+ {[%clk 0:00:07]} 33. Kd2 {[%clk 0:00:31]}  Ne4+ {[%clk 0:00:08]} 34. Ke2 {[%clk 0:00:31]}  Nc3+ {[%clk 0:00:08]} 1/2-1/2


[Site "https://www.chess.com"]

[Event "Titled Tuesday Blitz December 06 Early 2022"]
[White "De Souza, Cristiano Gomes"]
[Black "Caruana, Fabiano"]
[WhiteFideId "2151758"]
[BlackFideId "2020009"]
[WhiteElo "2068"]
[BlackElo "2847"]
[Result "0-1"]
[Round "02"]
[TimeControl "180+1"]
[Date "2022.12.07"]
[WhiteClock "0:00:23"]
[BlackClock "0:02:05"]

1. d4 {[%clk 0:02:17]}  Nf6 {[%clk 0:02:53]} 2. c4 {[%clk 0:02:16]}  c5 {[%clk 0:02:53]} 3. d5 {[%clk 0:02:16]}  e5 {[%clk 0:02:54]} 4. Nc3 {[%clk 0:02:14]}  d6 {[%clk 0:02:54]} 5. e4 {[%clk 0:02:14]}  Be7 {[%clk 0:02:55]} 6. Be2 {[%clk 0:02:13]}  O-O {[%clk 0:02:54]} 7. Nf3 {[%clk 0:02:13]}  Nbd7 {[%clk 0:02:53]} 8. O-O {[%clk 0:02:13]}  Re8 {[%clk 0:02:53]} 9. h3 {[%clk 0:01:41]}  Nf8 {[%clk 0:02:50]} 10. Ne1 {[%clk 0:01:40]}  Ng6 {[%clk 0:02:49]} 11. Nd3 {[%clk 0:01:38]}  h6 {[%clk 0:02:49]} 12. Be3 {[%clk 0:01:38]}  Nh7 {[%clk 0:02:47]} 13. Rc1 {[%clk 0:01:36]}  Bg5 {[%clk 0:02:46]} 14. Qd2 {[%clk 0:01:35]}  Bd7 {[%clk 0:02:44]} 15. a3 {[%clk 0:01:35]}  b6 {[%clk 0:02:43]} 16. b4 {[%clk 0:01:34]}  Qf6 {[%clk 0:02:41]} 17. Bxg5 {[%clk 0:01:31]}  Nxg5 {[%clk 0:02:38]} 18. Bg4 {[%clk 0:01:25]}  Bxg4 {[%clk 0:02:34]} 19. hxg4 {[%clk 0:01:25]}  Nf4 {[%clk 0:02:33]} 20. Nxf4 {[%clk 0:01:24]}  exf4 {[%clk 0:02:30]} 21. f3 {[%clk 0:01:24]}  Rac8 {[%clk 0:02:24]} 22. Nb5 {[%clk 0:01:19]}  Re7 {[%clk 0:02:19]} 23. bxc5 {[%clk 0:01:17]}  Rxc5 {[%clk 0:02:18]} 24. Qd4 {[%clk 0:01:10]}  Re5 {[%clk 0:02:12]} 25. Nxa7 {[%clk 0:01:01]}  h5 {[%clk 0:02:11]} 26. gxh5 {[%clk 0:00:58]}  Nh3+ {[%clk 0:02:11]} 27. Kh2 {[%clk 0:00:37]}  Qh4 {[%clk 0:02:11]} 28. gxh3 {[%clk 0:00:23]}  Qg3+ {[%clk 0:02:05]} 0-1


[Site "https://www.chess.com"]

[Event "Titled Tuesday Blitz December 06 Early 2022"]
[White "Demin, Vladimir"]
[Black "Gabuzyan, Hovhannes"]
[WhiteFideId "4167457"]
[BlackFideId "13303732"]
[WhiteElo "2562"]
[BlackElo "2486"]
[Result "0-1"]
[Round "02"]
[TimeControl "180+1"]
[Date "2022.12.07"]
[WhiteClock "0:01:11"]
[BlackClock "0:00:54"]

1. e4 {[%clk 0:03:00]}  c5 {[%clk 0:03:00]} 2. Nf3 {[%clk 0:02:58]}  Nc6 {[%clk 0:03:00]} 3. c3 {[%clk 0:02:58]}  Nf6 {[%clk 0:02:59]} 4. e5 {[%clk 0:02:58]}  Nd5 {[%clk 0:02:59]} 5. d4 {[%clk 0:02:58]}  cxd4 {[%clk 0:02:59]} 6. cxd4 {[%clk 0:02:59]}  d6 {[%clk 0:02:59]} 7. Bc4 {[%clk 0:02:57]}  Nb6 {[%clk 0:02:59]} 8. Bb5 {[%clk 0:02:55]}  dxe5 {[%clk 0:02:59]} 9. Nxe5 {[%clk 0:02:55]}  Bd7 {[%clk 0:02:59]} 10. Nc3 {[%clk 0:02:54]}  e6 {[%clk 0:02:47]} 11. O-O {[%clk 0:02:48]}  Nxe5 {[%clk 0:02:45]} 12. dxe5 {[%clk 0:02:49]}  Bxb5 {[%clk 0:02:44]} 13. Nxb5 {[%clk 0:02:47]}  Nd5 {[%clk 0:02:44]} 14. Nc3 {[%clk 0:02:45]}  Nxc3 {[%clk 0:02:43]} 15. bxc3 {[%clk 0:02:46]}  Qxd1 {[%clk 0:02:43]} 16. Rxd1 {[%clk 0:02:44]}  Rc8 {[%clk 0:02:43]} 17. Be3 {[%clk 0:02:42]}  Bc5 {[%clk 0:02:42]} 18. Rab1 {[%clk 0:02:36]}  Bxe3 {[%clk 0:02:41]} 19. fxe3 {[%clk 0:02:35]}  b6 {[%clk 0:02:40]} 20. Rd3 {[%clk 0:02:30]}  Ke7 {[%clk 0:02:35]} 21. Rb4 {[%clk 0:02:25]}  Rc7 {[%clk 0:02:26]} 22. Kf2 {[%clk 0:02:22]}  Rhc8 {[%clk 0:02:25]} 23. Rg4 {[%clk 0:02:16]}  g6 {[%clk 0:02:24]} 24. Ra4 {[%clk 0:02:06]}  a5 {[%clk 0:02:14]} 25. Ra3 {[%clk 0:02:03]}  Rc5 {[%clk 0:02:11]} 26. Rd6 {[%clk 0:02:02]}  Rxc3 {[%clk 0:02:06]} 27. Rxc3 {[%clk 0:02:00]}  Rxc3 {[%clk 0:02:07]} 28. Rxb6 {[%clk 0:02:01]}  Rc2+ {[%clk 0:02:07]} 29. Kf3 {[%clk 0:02:00]}  Rxa2 {[%clk 0:02:08]} 30. Rb7+ {[%clk 0:02:01]}  Kf8 {[%clk 0:02:07]} 31. Ra7 {[%clk 0:01:59]}  Kg7 {[%clk 0:02:07]} 32. h4 {[%clk 0:01:55]}  g5 {[%clk 0:02:02]} 33. hxg5 {[%clk 0:01:50]}  Kg6 {[%clk 0:02:02]} 34. Kg4 {[%clk 0:01:49]}  Ra4+ {[%clk 0:02:01]} 35. Kf3 {[%clk 0:01:47]}  Ra1 {[%clk 0:02:00]} 36. Kg4 {[%clk 0:01:46]}  a4 {[%clk 0:01:59]} 37. g3 {[%clk 0:01:45]}  a3 {[%clk 0:01:52]} 38. Ra6 {[%clk 0:01:43]}  a2 {[%clk 0:01:49]} 39. Ra7 {[%clk 0:01:40]}  Re1 {[%clk 0:01:26]} 40. Rxa2 {[%clk 0:01:38]}  Rxe3 {[%clk 0:01:26]} 41. Kf4 {[%clk 0:01:38]}  Re1 {[%clk 0:01:21]} 42. Rf2 {[%clk 0:01:35]}  Ra1 {[%clk 0:01:18]} 43. Kg4 {[%clk 0:01:33]}  Ra4+ {[%clk 0:01:18]} 44. Rf4 {[%clk 0:01:32]}  Ra1 {[%clk 0:01:13]} 45. Rf6+ {[%clk 0:01:31]}  Kg7 {[%clk 0:01:13]} 46. Kf4 {[%clk 0:01:29]}  Rf1+ {[%clk 0:01:03]} 47. Kg4 {[%clk 0:01:28]}  Rxf6 {[%clk 0:00:55]} 48. gxf6+ {[%clk 0:01:29]}  Kg6 {[%clk 0:00:55]} 49. Kf4 {[%clk 0:01:22]}  h5 {[%clk 0:00:54]} 50. Kf3 {[%clk 0:01:11]}  Kf5 {[%clk 0:00:54]} 51. Kg2 {[%clk 0:01:11]}  Kxe5 {[%clk 0:00:54]} 52. Kh3 {[%clk 0:01:11]}  Kxf6 {[%clk 0:00:54]} 0-1


[Site "https://www.chess.com"]

[Event "Titled Tuesday Blitz December 06 Early 2022"]
[White "Eynullayev, Atilla"]
[Black "Gatterer, Florian"]
[WhiteFideId "13413570"]
[BlackFideId "811688"]
[WhiteElo "2181"]
[BlackElo "2218"]
[Result "0-1"]
[Round "02"]
[TimeControl "180+1"]
[Date "2022.12.07"]
[WhiteClock "0:00:39"]
[BlackClock "0:01:13"]

1. e4 {[%clk 0:03:00]}  c6 {[%clk 0:02:59]} 2. Nf3 {[%clk 0:03:00]}  d5 {[%clk 0:02:59]} 3. Nc3 {[%clk 0:03:00]}  Bg4 {[%clk 0:02:59]} 4. h3 {[%clk 0:03:00]}  Bxf3 {[%clk 0:02:59]} 5. Qxf3 {[%clk 0:03:00]}  e6 {[%clk 0:03:00]} 6. Be2 {[%clk 0:03:01]}  Nd7 {[%clk 0:03:00]} 7. O-O {[%clk 0:03:01]}  Bc5 {[%clk 0:03:00]} 8. exd5 {[%clk 0:02:57]}  cxd5 {[%clk 0:02:56]} 9. Rd1 {[%clk 0:02:55]}  Ne7 {[%clk 0:02:54]} 10. d4 {[%clk 0:02:55]}  Bd6 {[%clk 0:02:52]} 11. Nb5 {[%clk 0:02:55]}  Bb8 {[%clk 0:02:52]} 12. Bf4 {[%clk 0:02:56]}  O-O {[%clk 0:02:45]} 13. a4 {[%clk 0:02:49]}  a6 {[%clk 0:02:27]} 14. Na3 {[%clk 0:02:46]}  Bxf4 {[%clk 0:02:24]} 15. Qxf4 {[%clk 0:02:46]}  Nc6 {[%clk 0:02:20]} 16. c3 {[%clk 0:02:40]}  Nf6 {[%clk 0:02:19]} 17. Nc2 {[%clk 0:02:40]}  Rc8 {[%clk 0:02:19]} 18. Bd3 {[%clk 0:02:40]}  Qc7 {[%clk 0:02:19]} 19. Qg5 {[%clk 0:02:39]}  h6 {[%clk 0:02:17]} 20. Qe3 {[%clk 0:02:38]}  Nh5 {[%clk 0:02:12]} 21. g3 {[%clk 0:02:37]}  Nf6 {[%clk 0:02:09]} 22. Ne1 {[%clk 0:02:37]}  Na5 {[%clk 0:02:08]} 23. Nf3 {[%clk 0:02:23]}  Nd7 {[%clk 0:01:55]} 24. Re1 {[%clk 0:02:07]}  Rfe8 {[%clk 0:01:54]} 25. Re2 {[%clk 0:01:55]}  Nc4 {[%clk 0:01:54]} 26. Qc1 {[%clk 0:01:55]}  b5 {[%clk 0:01:51]} 27. axb5 {[%clk 0:01:50]}  axb5 {[%clk 0:01:51]} 28. Qd1 {[%clk 0:01:34]}  Ra8 {[%clk 0:01:49]} 29. Rxa8 {[%clk 0:01:33]}  Rxa8 {[%clk 0:01:48]} 30. b3 {[%clk 0:01:30]}  Nd6 {[%clk 0:01:45]} 31. Rc2 {[%clk 0:01:30]}  Ra3 {[%clk 0:01:37]} 32. Rc1 {[%clk 0:01:25]}  Qa7 {[%clk 0:01:37]} 33. Ne5 {[%clk 0:01:23]}  Nxe5 {[%clk 0:01:36]} 34. dxe5 {[%clk 0:01:23]}  Ra2 {[%clk 0:01:24]} 35. Qe1 {[%clk 0:00:56]}  Ne4 {[%clk 0:01:23]} 36. Bxe4 {[%clk 0:00:56]}  dxe4 {[%clk 0:01:24]} 37. Rd1 {[%clk 0:00:57]}  g6 {[%clk 0:01:19]} 38. c4 {[%clk 0:00:40]}  bxc4 {[%clk 0:01:18]} 39. bxc4 {[%clk 0:00:41]}  Kg7 {[%clk 0:01:18]} 40. Rc1 {[%clk 0:00:38]}  Qc5 {[%clk 0:01:15]} 41. Qxe4 {[%clk 0:00:38]}  Qxf2+ {[%clk 0:01:14]} 42. Kh1 {[%clk 0:00:39]}  Qh2# {[%clk 0:01:13]} 0-1


[Site "https://www.chess.com"]

[Event "Titled Tuesday Blitz December 06 Early 2022"]
[White "Fabris, Alberto"]
[Black "Ilkhomi, Jaloliddin"]
[WhiteFideId "801348"]
[BlackFideId "14700948"]
[WhiteElo "2170"]
[BlackElo "2045"]
[Result "0-1"]
[Round "02"]
[TimeControl "180+1"]
[Date "2022.12.07"]
[WhiteClock "0:01:09"]
[BlackClock "0:02:02"]

1. d4 {[%clk 0:03:00]}  Nf6 {[%clk 0:03:00]} 2. Nf3 {[%clk 0:03:01]}  e6 {[%clk 0:02:59]} 3. Bf4 {[%clk 0:03:00]}  b6 {[%clk 0:02:58]} 4. e3 {[%clk 0:03:00]}  Bb7 {[%clk 0:02:59]} 5. Bd3 {[%clk 0:03:00]}  Be7 {[%clk 0:02:59]} 6. O-O {[%clk 0:02:59]}  d6 {[%clk 0:02:59]} 7. Nbd2 {[%clk 0:02:58]}  Nbd7 {[%clk 0:03:00]} 8. e4 {[%clk 0:02:57]}  c5 {[%clk 0:02:58]} 9. c3 {[%clk 0:02:56]}  Qc7 {[%clk 0:02:57]} 10. e5 {[%clk 0:02:51]}  dxe5 {[%clk 0:02:57]} 11. Nxe5 {[%clk 0:02:50]}  Nxe5 {[%clk 0:02:57]} 12. Bxe5 {[%clk 0:02:48]}  Bd6 {[%clk 0:02:56]} 13. Nf3 {[%clk 0:02:45]}  O-O-O {[%clk 0:02:49]} 14. Qe2 {[%clk 0:02:34]}  Kb8 {[%clk 0:02:35]} 15. Bxd6 {[%clk 0:02:31]}  Rxd6 {[%clk 0:02:33]} 16. Rad1 {[%clk 0:02:28]}  Rhd8 {[%clk 0:02:32]} 17. dxc5 {[%clk 0:02:26]}  Qxc5 {[%clk 0:02:31]} 18. Nd4 {[%clk 0:02:19]}  Qg5 {[%clk 0:02:27]} 19. f3 {[%clk 0:02:13]}  Nd5 {[%clk 0:02:18]} 20. h4 {[%clk 0:01:20]}  Qxh4 {[%clk 0:02:08]} 21. Qf2 {[%clk 0:01:21]}  Qg5 {[%clk 0:02:05]} 22. Ne2 {[%clk 0:01:11]}  Ne3 {[%clk 0:02:02]} 23. f4 {[%clk 0:01:09]}  Nxd1 {[%clk 0:02:02]} 0-1


[Site "https://www.chess.com"]

[Event "Titled Tuesday Blitz December 06 Early 2022"]
[White "Gheorghiu, Calin"]
[Black "Bok, Benjamin"]
[WhiteFideId "1200305"]
[BlackFideId "1017063"]
[WhiteElo "2224"]
[BlackElo "2658"]
[Result "0-1"]
[Round "02"]
[TimeControl "180+1"]
[Date "2022.12.07"]
[WhiteClock "0:00:21"]
[BlackClock "0:01:47"]

1. e4 {[%clk 0:03:00]}  c5 {[%clk 0:02:59]} 2. Nf3 {[%clk 0:03:00]}  d6 {[%clk 0:02:59]} 3. d4 {[%clk 0:02:58]}  cxd4 {[%clk 0:03:00]} 4. Nxd4 {[%clk 0:02:59]}  Nf6 {[%clk 0:03:01]} 5. Nc3 {[%clk 0:03:00]}  a6 {[%clk 0:03:01]} 6. f3 {[%clk 0:02:59]}  e5 {[%clk 0:03:01]} 7. Nb3 {[%clk 0:02:59]}  Be6 {[%clk 0:03:02]} 8. Be3 {[%clk 0:02:59]}  Be7 {[%clk 0:03:02]} 9. Qd2 {[%clk 0:02:59]}  O-O {[%clk 0:03:03]} 10. g4 {[%clk 0:02:49]}  d5 {[%clk 0:02:56]} 11. g5 {[%clk 0:02:46]}  d4 {[%clk 0:02:55]} 12. gxf6 {[%clk 0:02:40]}  Bxf6 {[%clk 0:02:56]} 13. Bf2 {[%clk 0:02:37]}  Bg5 {[%clk 0:02:47]} 14. Qd3 {[%clk 0:02:31]}  dxc3 {[%clk 0:02:47]} 15. Qxc3 {[%clk 0:02:32]}  Nc6 {[%clk 0:02:47]} 16. h4 {[%clk 0:02:25]}  Bh6 {[%clk 0:02:41]} 17. Nc5 {[%clk 0:02:22]}  Rc8 {[%clk 0:02:15]} 18. Nxe6 {[%clk 0:02:21]}  fxe6 {[%clk 0:02:14]} 19. Qb3 {[%clk 0:02:21]}  Qf6 {[%clk 0:02:10]} 20. Rh3 {[%clk 0:02:12]}  Nd4 {[%clk 0:02:04]} 21. Bxd4 {[%clk 0:02:05]}  exd4 {[%clk 0:02:04]} 22. Bc4 {[%clk 0:02:04]}  Rc6 {[%clk 0:01:59]} 23. a4 {[%clk 0:01:58]}  Qg6 {[%clk 0:01:55]} 24. Kf1 {[%clk 0:01:15]}  Be3 {[%clk 0:01:52]} 25. Ke1 {[%clk 0:00:23]}  Qg1+ {[%clk 0:01:47]} 26. Bf1 {[%clk 0:00:21]}  Qf2+ {[%clk 0:01:47]} 0-1


[Site "https://www.chess.com"]

[Event "Titled Tuesday Blitz December 06 Early 2022"]
[White "Ghosh, Chanchal Kumer"]
[Black "Olenik Campa, Rudi"]
[WhiteFideId "10201858"]
[BlackFideId "14633264"]
[WhiteElo "2058"]
[BlackElo "2131"]
[Result "1-0"]
[Round "02"]
[TimeControl "180+1"]
[Date "2022.12.07"]
[WhiteClock "0:01:31"]
[BlackClock "0:00:14"]

1. e4 {[%clk 0:03:00]}  c5 {[%clk 0:02:59]} 2. Nf3 {[%clk 0:02:58]}  Nc6 {[%clk 0:02:59]} 3. d4 {[%clk 0:02:58]}  cxd4 {[%clk 0:02:59]} 4. Nxd4 {[%clk 0:02:59]}  Nf6 {[%clk 0:02:59]} 5. Nc3 {[%clk 0:02:59]}  e5 {[%clk 0:02:59]} 6. Ndb5 {[%clk 0:02:58]}  d6 {[%clk 0:03:00]} 7. Bg5 {[%clk 0:02:57]}  a6 {[%clk 0:03:00]} 8. Na3 {[%clk 0:02:57]}  b5 {[%clk 0:03:00]} 9. Nd5 {[%clk 0:02:57]}  Be7 {[%clk 0:02:59]} 10. Bxf6 {[%clk 0:02:57]}  Bxf6 {[%clk 0:03:00]} 11. c3 {[%clk 0:02:57]}  O-O {[%clk 0:02:59]} 12. Be2 {[%clk 0:02:56]}  Be6 {[%clk 0:02:58]} 13. Nc2 {[%clk 0:02:55]}  Bxd5 {[%clk 0:02:57]} 14. Qxd5 {[%clk 0:02:52]}  Ne7 {[%clk 0:02:57]} 15. Qd2 {[%clk 0:02:52]}  d5 {[%clk 0:02:57]} 16. exd5 {[%clk 0:02:50]}  Qxd5 {[%clk 0:02:54]} 17. Qxd5 {[%clk 0:02:49]}  Nxd5 {[%clk 0:02:55]} 18. Bf3 {[%clk 0:02:49]}  Rad8 {[%clk 0:02:30]} 19. Bxd5 {[%clk 0:02:48]}  Rxd5 {[%clk 0:02:30]} 20. Rd1 {[%clk 0:02:44]}  Rxd1+ {[%clk 0:02:29]} 21. Kxd1 {[%clk 0:02:45]}  Rd8+ {[%clk 0:02:28]} 22. Ke2 {[%clk 0:02:45]}  e4 {[%clk 0:02:28]} 23. Rd1 {[%clk 0:02:45]}  Rxd1 {[%clk 0:02:27]} 24. Kxd1 {[%clk 0:02:45]}  Be5 {[%clk 0:02:27]} 25. h3 {[%clk 0:02:44]}  f5 {[%clk 0:02:23]} 26. Ke2 {[%clk 0:02:39]}  Kf7 {[%clk 0:02:22]} 27. Ke3 {[%clk 0:02:38]}  Ke6 {[%clk 0:02:22]} 28. Nb4 {[%clk 0:02:37]}  a5 {[%clk 0:02:21]} 29. Nc6 {[%clk 0:02:37]}  a4 {[%clk 0:02:08]} 30. Nd4+ {[%clk 0:02:24]}  Bxd4+ {[%clk 0:02:01]} 31. Kxd4 {[%clk 0:02:25]}  g5 {[%clk 0:01:58]} 32. c4 {[%clk 0:02:08]}  bxc4 {[%clk 0:01:51]} 33. Kxc4 {[%clk 0:02:09]}  Ke5 {[%clk 0:01:48]} 34. b4 {[%clk 0:02:00]}  axb3 {[%clk 0:01:46]} 35. axb3 {[%clk 0:02:00]}  h5 {[%clk 0:01:05]} 36. b4 {[%clk 0:01:59]}  g4 {[%clk 0:01:00]} 37. hxg4 {[%clk 0:01:53]}  fxg4 {[%clk 0:00:45]} 38. g3 {[%clk 0:01:52]}  h4 {[%clk 0:00:40]} 39. gxh4 {[%clk 0:01:47]}  Kf4 {[%clk 0:00:15]} 40. b5 {[%clk 0:01:41]}  e3 {[%clk 0:00:15]} 41. fxe3+ {[%clk 0:01:33]}  Ke5 {[%clk 0:00:14]} 42. Kd3 {[%clk 0:01:31]}  g3 {[%clk 0:00:14]} 43. Ke2 {[%clk 0:01:31]} 1-0


[Site "https://www.chess.com"]